bitfinex/quotes_BTCUSD_20250616
["timestamp","ask_amount","ask_price","bid_price","bid_amount"]
[1750089921994,0.01,107530.0,107520.0,2.60737559]
[1750089922233,0.01,107530.0,107520.0,2.60937559]
[1750089922447,0.01,107530.0,107520.0,2.41025559]
[1750089922674,0.01,107530.0,107520.0,2.60737559]
[1750089923366,0.01,107530.0,107520.0,2.36025559]
[1750089923583,0.01,107530.0,107520.0,2.60737559]
[1750089923839,0.01,107530.0,107520.0,2.61237559]
[1750089924277,0.01,107530.0,107520.0,2.41825559]
[1750089924516,0.01,107530.0,107520.0,1.42789767]
[1750089924701,0.01,107530.0,107520.0,2.59873559]
[1750089925276,0.01,107530.0,107520.0,2.56533559]
[1750089925495,0.01,107530.0,107520.0,2.61533559]
[1750089926165,0.01,107530.0,107520.0,2.56533559]
[1750089931112,0.01,107530.0,107520.0,1.39449767]
[1750089931337,0.01,107530.0,107520.0,2.61533559]
[1750089932030,0.01,107530.0,107520.0,2.70836083]
[1750089932280,0.01,107530.0,107520.0,2.61533559]
[1750089932733,0.01,107530.0,107520.0,2.70836083]
[1750089933211,0.01,107530.0,107520.0,2.61533559]
[1750089933640,0.01,107530.0,107520.0,2.45977559]
[1750089933876,0.01,107530.0,107520.0,2.41825559]
[1750089934110,0.01,107530.0,107520.0,2.61529559]
[1750089934602,0.01,107530.0,107520.0,2.90919559]
[1750089935977,0.01,107530.0,107520.0,2.71215559]
[1750089936212,0.01,107530.0,107520.0,3.00711559]
[1750089936441,0.01,107530.0,107520.0,2.90919559]
[1750089941855,0.0288,107530.0,107520.0,2.65063559]
[1750089942078,0.0288,107530.0,107520.0,2.84767559]
[1750089942783,0.01,107530.0,107520.0,2.88217559]
[1750089945642,0.01,107530.0,107520.0,2.86557559]
[1750089947494,0.01,107530.0,107520.0,2.95860083]
[1750089947728,0.01,107530.0,107520.0,2.86557559]
[1750089947940,0.01,107530.0,107520.0,2.95860083]
[1750089949131,0.00243571,107530.0,107520.0,2.95860083]
[1750089949354,0.00064699,107530.0,107520.0,2.97520083]
[1750089950426,0.00064699,107530.0,107520.0,2.95860083]
[1750089950845,0.00064699,107530.0,107520.0,2.97520083]
[1750089951512,0.00064699,107530.0,107520.0,2.77816083]
[1750089951725,0.00064699,107530.0,107520.0,2.97512083]
[1750089952359,0.00064699,107530.0,107520.0,3.26902083]
[1750089953014,0.00064699,107530.0,107520.0,3.25242083]
[1750089953496,0.00064699,107530.0,107520.0,3.23452083]
[1750089957469,0.00017661,107530.0,107520.0,3.27012083]
[1750089957690,0.00017661,107530.0,107520.0,3.30733093]
[1750089958353,4.888e-05,107530.0,107520.0,3.30733093]
[1750089958635,0.0174,107550.0,107540.0,1.0384137]
[1750089958856,0.0174,107550.0,107540.0,2.46093338]
[1750089959522,0.11069857,107560.0,107550.0,0.27839381]
[1750089959744,0.11069857,107560.0,107550.0,1.74239349]
[1750089959977,0.0355,107560.0,107550.0,1.74239349]
[1750089961338,0.0355,107560.0,107550.0,0.57155557]
[1750089961560,0.0355,107560.0,107550.0,1.74239349]
[1750089961781,0.0375,107560.0,107550.0,1.74239349]
[1750089962905,0.0194,107560.0,107550.0,1.74239349]
[1750089963145,0.0194,107560.0,107550.0,2.08239349]
[1750089964014,0.0274,107560.0,107550.0,2.08239349]
[1750089964276,0.01,107560.0,107550.0,2.10239349]
[1750089964502,0.01,107560.0,107550.0,2.16969349]
[1750089964727,0.01,107560.0,107550.0,2.27921207]
[1750089965461,0.00317894,107560.0,107550.0,2.27921207]
[1750089965671,0.00317894,107560.0,107550.0,2.57311207]
[1750089966141,0.00317894,107560.0,107550.0,2.57511207]
[1750089967076,0.00317894,107560.0,107550.0,2.57711207]
[1750089967507,0.00317894,107560.0,107550.0,2.57707207]
[1750089967995,0.00317894,107560.0,107550.0,2.36359207]
[1750089968228,0.00317894,107560.0,107550.0,2.56047207]
[1750089968463,0.00317894,107560.0,107550.0,2.18337349]
[1750089968689,0.02097894,107560.0,107550.0,2.91809349]
[1750089968933,0.03867894,107560.0,107550.0,2.91809349]
[1750089969160,0.03867894,107560.0,107550.0,1.74725557]
[1750089969384,0.03867894,107560.0,107550.0,2.91809349]
[1750089969613,0.03867894,107560.0,107550.0,1.74721557]
[1750089969849,0.03867894,107560.0,107550.0,2.33263453]
[1750089970509,0.03867894,107560.0,107550.0,2.91805349]
[1750089973175,0.02097894,107560.0,107550.0,2.91805349]
[1750089974268,0.00317894,107560.0,107550.0,2.91805349]
[1750089974961,0.02217894,107560.0,107550.0,2.91805349]
[1750089975172,0.04107894,107560.0,107550.0,2.91805349]
[1750089975418,0.04107894,107560.0,107550.0,1.28253557]
[1750089975643,0.04107894,107560.0,107550.0,1.75735368]
[1750089975872,0.04570894,107560.0,107550.0,1.70407368]
[1750089976094,0.04570894,107560.0,107550.0,1.71861453]
[1750089976733,0.04570894,107560.0,107550.0,1.52189453]
[1750089976945,0.04570894,107560.0,107550.0,1.71861453]
[1750089977406,0.04107894,107560.0,107550.0,1.76861453]
[1750089978092,0.04107894,107560.0,107550.0,2.35403349]
[1750089978786,0.00317894,107560.0,107550.0,2.35403349]
[1750089979013,0.00317894,107560.0,107550.0,2.37403349]
[1750089980845,0.02067894,107560.0,107550.0,2.37403349]
[1750089981466,0.00317894,107560.0,107550.0,2.22731349]
[1750089981706,0.00317894,107560.0,107550.0,2.42403349]
[1750089981914,0.00317894,107560.0,107550.0,2.44471249]
[1750089983617,0.00317894,107560.0,107550.0,1.27387457]
[1750089983877,0.00317894,107560.0,107550.0,2.44471249]
[1750089984809,0.00317894,107560.0,107550.0,2.73861249]
[1750089985018,0.00317894,107560.0,107550.0,2.83153107]
[1750089989344,0.02217894,107560.0,107550.0,2.83153107]
[1750089990593,0.03977894,107560.0,107550.0,2.83153107]
[1750089992384,0.03977894,107560.0,107550.0,1.14147315]
[1750089992597,0.04452894,107560.0,107550.0,2.00403368]
[1750089992801,0.04452894,107560.0,107550.0,2.01857453]
[1750089993023,0.04452894,107560.0,107550.0,1.82189453]
[1750089993250,0.03977894,107560.0,107550.0,2.60399349]
[1750089994973,0.03977894,107560.0,107550.0,2.01857453]
[1750089996631,0.03977894,107560.0,107550.0,1.96857453]
[1750089996806,0.03977894,107560.0,107550.0,2.01857453]
[1750089997653,0.03977894,107560.0,107550.0,1.96857453]
[1750089997866,0.03977894,107560.0,107550.0,2.01857453]
[1750089998928,0.04452894,107560.0,107550.0,2.01857453]
[1750090001100,0.04452894,107560.0,107550.0,1.96857453]
[1750090001555,0.04452894,107560.0,107550.0,1.91857453]
[1750090001770,0.04452894,107560.0,107550.0,1.72189453]
[1750090001985,0.04452894,107560.0,107550.0,1.91857453]
[1750090004373,0.04452894,107560.0,107550.0,1.16329472]
[1750090004585,0.04452894,107560.0,107550.0,1.31857472]
[1750090004809,0.04452894,107560.0,107550.0,1.90399368]
[1750090005727,0.03977894,107560.0,107550.0,1.90399368]
[1750090006806,0.03977894,107560.0,107550.0,1.96853453]
[1750090010427,0.03977894,107560.0,107550.0,1.11857472]
[1750090010637,0.04452894,107560.0,107550.0,1.11857472]
[1750090011259,0.04452894,107560.0,107550.0,1.11853472]
[1750090012940,0.04452894,107560.0,107550.0,0.62329472]
[1750090013370,0.04452894,107560.0,107550.0,0.77853472]
[1750090028230,0.03977894,107560.0,107550.0,0.77853472]
[1750090028518,0.00317894,107560.0,107550.0,2.32231349]
[1750090028779,0.0189,107570.0,107560.0,0.41383309]
[1750090029007,0.0189,107570.0,107560.0,1.25065381]
[1750090029228,0.0378,107570.0,107560.0,1.25065381]
[1750090030115,0.03827244,107570.0,107560.0,1.25065381]
[1750090032615,0.01937244,107570.0,107560.0,1.25065381]
[1750090035458,0.01937244,107570.0,107560.0,1.2782415]
[1750090035687,0.00047244,107570.0,107560.0,1.70158235]
[1750090036108,0.00047244,107570.0,107560.0,1.68278235]
[1750090039623,0.01867244,107570.0,107560.0,1.68278235]
[1750090040035,0.01867244,107570.0,107560.0,1.52762235]
[1750090040240,0.03647244,107570.0,107560.0,1.72402235]
[1750090040606,0.03647244,107570.0,107560.0,1.52762235]
[1750090040812,0.03647244,107570.0,107560.0,1.72398235]
[1750090041710,0.03647244,107570.0,107560.0,0.87766254]
[1750090041953,0.03647244,107570.0,107560.0,0.85007485]
[1750090042163,0.04128244,107570.0,107560.0,0.50643485]
[1750090042598,0.04128244,107570.0,107560.0,0.31007485]
[1750090042814,0.04128244,107570.0,107560.0,0.77427485]
[1750090043557,0.6267014,107570.0,107560.0,0.77427485]
[1750090043767,0.6267014,107570.0,107560.0,0.67803309]
[1750090044409,0.6267014,107570.0,107560.0,0.48167309]
[1750090044620,0.6267014,107570.0,107560.0,0.67803309]
[1750090044841,0.6267014,107570.0,107560.0,0.48167309]
[1750090045053,0.6267014,107570.0,107560.0,0.67803309]
[1750090051051,0.03647244,107570.0,107560.0,0.67803309]
[1750090052052,0.6218914,107570.0,107560.0,0.67803309]
[1750090052250,0.6264114,107570.0,107560.0,0.67803309]
[1750090058423,0.03647244,107570.0,107560.0,1.35969381]
[1750090058634,0.01867244,107570.0,107560.0,1.35969381]
[1750090060585,0.01867244,107570.0,107560.0,1.55969381]
[1750090060801,0.00047244,107570.0,107560.0,1.57859381]
[1750090061022,0.00047244,107570.0,107560.0,1.59549381]
[1750090061866,0.00047244,107570.0,107560.0,1.59514661]
[1750090062347,0.00047244,107570.0,107560.0,1.63763658]
[1750090062571,0.00047244,107570.0,107560.0,1.88763658]
[1750090063039,0.00047244,107570.0,107560.0,1.90763658]
[1750090063249,0.00047244,107570.0,107560.0,1.32221762]
[1750090063472,0.00047244,107570.0,107560.0,1.87183658]
[1750090063983,0.00047244,107570.0,107560.0,1.89073658]
[1750090064479,0.00047244,107570.0,107560.0,1.30531762]
[1750090064747,0.00047244,107570.0,107560.0,1.89073658]
[1750090066972,0.00047244,107570.0,107560.0,1.87183658]
[1750090068241,0.00047244,107570.0,107560.0,1.88953658]
[1750090071576,0.00047244,107570.0,107560.0,1.10775762]
[1750090071798,0.00047244,107570.0,107560.0,1.88925658]
[1750090072451,0.00047244,107570.0,107560.0,1.87151658]
[1750090072667,0.00047244,107570.0,107560.0,1.90731658]
[1750090072892,0.00047244,107570.0,107560.0,2.24731658]
[1750090074470,0.00047244,107570.0,107560.0,2.23041658]
[1750090077782,0.00047244,107570.0,107560.0,2.03437658]
[1750090077987,0.00047244,107570.0,107560.0,2.23037658]
[1750090079816,0.00047244,107570.0,107560.0,2.21147658]
[1750090080212,0.00047244,107570.0,107560.0,2.23147658]
[1750090080431,0.00047244,107570.0,107560.0,2.26737658]
[1750090081684,0.00047244,107570.0,107560.0,2.25037658]
[1750090082211,0.00047244,107570.0,107560.0,2.23147658]
[1750090083315,0.00047244,107570.0,107560.0,1.64605762]
[1750090083529,0.01857244,107570.0,107560.0,2.23147658]
[1750090084357,0.00047244,107570.0,107560.0,2.23147658]
[1750090085407,0.00047244,107570.0,107560.0,2.52537658]
[1750090085887,0.00047244,107570.0,107560.0,1.93995762]
[1750090086103,0.00047244,107570.0,107560.0,2.52537658]
[1750090086763,0.00047244,107570.0,107560.0,2.54287658]
[1750090087658,0.00047244,107570.0,107560.0,2.55987658]
[1750090088312,0.00013283,107570.0,107560.0,3.19529554]
[1750090088528,0.00013283,107570.0,107560.0,2.60987658]
[1750090088766,0.00013283,107570.0,107560.0,2.70273036]
[1750090089014,0.00013283,107570.0,107560.0,2.60987658]
[1750090089462,1.916e-05,107570.0,107560.0,2.61387658]
[1750090089700,1.916e-05,107570.0,107560.0,2.61187658]
[1750090090143,1.916e-05,107570.0,107560.0,2.51271042]
[1750090090360,1.916e-05,107570.0,107560.0,2.65413042]
[1750090090571,0.01771916,107570.0,107560.0,2.65413042]
[1750090090878,0.01771916,107570.0,107560.0,2.45821042]
[1750090091082,0.01771916,107570.0,107560.0,2.65413042]
[1750090091288,1.916e-05,107570.0,107560.0,2.65213042]
[1750090091511,1.916e-05,107570.0,107560.0,2.65513042]
[1750090092342,1.916e-05,107570.0,107560.0,2.06971146]
[1750090092550,1.916e-05,107570.0,107560.0,2.65513042]
[1750090092957,1.916e-05,107570.0,107560.0,2.67263042]
[1750090093172,1.916e-05,107570.0,107560.0,2.08721146]
[1750090093385,1.916e-05,107570.0,107560.0,2.67263042]
[1750090093596,0.01911916,107570.0,107560.0,2.65509042]
[1750090094026,1.916e-05,107570.0,107560.0,2.65509042]
[1750090094658,0.01911916,107570.0,107560.0,2.65509042]
[1750090095741,1.916e-05,107570.0,107560.0,2.65509042]
[1750090096409,0.036,107580.0,107570.0,0.91377301]
[1750090096624,0.036,107580.0,107570.0,1.11473477]
[1750090096841,0.03604722,107580.0,107570.0,1.01001477]
[1750090097066,0.03604722,107580.0,107570.0,1.20577477]
[1750090097731,0.03604722,107580.0,107570.0,1.15777477]
[1750090098414,0.03604722,107580.0,107570.0,0.57235581]
[1750090098724,0.03604722,107580.0,107570.0,1.15977477]
[1750090099195,0.03604722,107580.0,107570.0,0.96401477]
[1750090099446,0.03604722,107580.0,107570.0,1.15973477]
[1750090101981,0.03604722,107580.0,107570.0,1.20973477]
[1750090102838,0.01824722,107580.0,107570.0,1.20973477]
[1750090103714,0.03574722,107580.0,107570.0,1.20973477]
[1750090104142,0.02063802,107580.0,107570.0,1.20973477]
[1750090105257,0.02063802,107580.0,107570.0,1.15973477]
[1750090105690,0.02063802,107580.0,107570.0,1.15969477]
[1750090106395,0.02063802,107580.0,107570.0,0.96401477]
[1750090106604,0.02063802,107580.0,107570.0,1.15969477]
[1750090107234,0.02063802,107580.0,107570.0,0.75963581]
[1750090107442,0.02063802,107580.0,107570.0,0.91427581]
[1750090108622,0.02063802,107580.0,107570.0,1.49969477]
[1750090108859,4.722e-05,107580.0,107570.0,1.49969477]
[1750090110936,4.722e-05,107580.0,107570.0,1.51819477]
[1750090111142,4.722e-05,107580.0,107570.0,1.59252861]
[1750090111377,4.722e-05,107580.0,107570.0,1.61002861]
[1750090112016,7.22e-06,107580.0,107570.0,2.26444757]
[1750090112890,7.22e-06,107580.0,107570.0,1.67902861]
[1750090114670,7.22e-06,107580.0,107570.0,2.26444757]
[1750090117740,7.22e-06,107580.0,107570.0,2.17161373]
[1750090117973,0.11049857,107610.0,107600.0,0.23375359]
[1750090118198,0.11049857,107610.0,107600.0,1.11101431]
[1750090118199,0.11058662,107610.0,107600.0,1.11101431]
[1750090118414,0.03538805,107610.0,107600.0,1.17555516]
[1750090119275,0.03738805,107610.0,107600.0,0.97995516]
[1750090119498,0.03538805,107610.0,107600.0,0.97995516]
[1750090119964,0.03538805,107610.0,107600.0,1.17551516]
[1750090120872,0.03538805,107610.0,107600.0,1.00014775]
[1750090121104,0.03538805,107610.0,107600.0,0.35018794]
[1750090121329,0.04002805,107610.0,107600.0,0.52574794]
[1750090122664,0.04002805,107610.0,107600.0,0.33018794]
[1750090123099,0.04002805,107610.0,107600.0,0.52574794]
[1750090123762,0.04002805,107610.0,107600.0,0.33018794]
[1750090123987,0.04002805,107610.0,107600.0,0.52574794]
[1750090124465,0.04002805,107610.0,107600.0,0.33018794]
[1750090124682,0.04002805,107610.0,107600.0,0.52570794]
[1750090129114,0.03538805,107610.0,107600.0,1.1111269]
[1750090130998,8.805e-05,107610.0,107600.0,1.14566775]
[1750090131650,2.172e-05,107610.0,107600.0,1.14566775]
[1750090131857,2.172e-05,107610.0,107600.0,1.19566775]
[1750090132069,2.172e-05,107610.0,107600.0,1.19550775]
[1750090134882,0.0354,107620.0,107610.0,1.00013098]
[1750090135107,0.0354,107620.0,107610.0,1.09637274]
[1750090135327,0.0354,107620.0,107610.0,0.51095378]
[1750090135546,0.0354,107620.0,107610.0,0.66535378]
[1750090136116,0.0364,107620.0,107610.0,0.66535378]
[1750090136337,0.0394,107620.0,107610.0,0.66535378]
[1750090137227,0.0394,107620.0,107610.0,0.70627378]
[1750090138824,0.0394,107620.0,107610.0,1.29169274]
[1750090139266,0.0394,107620.0,107610.0,1.55941274]
[1750090141439,0.004,107620.0,107610.0,1.55941274]
[1750090142141,0.0417,107620.0,107610.0,1.55941274]
[1750090142366,0.004,107620.0,107610.0,1.75941274]
[1750090143021,0.0407,107620.0,107610.0,1.75941274]
[1750090143246,0.0377,107620.0,107610.0,1.75937274]
[1750090143706,0.0387,107620.0,107610.0,1.75937274]
[1750090145561,0.0387,107620.0,107610.0,1.75933274]
[1750090152476,0.0387,107620.0,107610.0,1.82387359]
[1750090152697,0.0201,107620.0,107610.0,1.82387359]
[1750090152916,0.001,107620.0,107610.0,2.76829255]
[1750090153130,0.0365,107630.0,107620.0,0.23371386]
[1750090153346,0.0365,107630.0,107620.0,1.06965458]
[1750090154493,0.0365,107640.0,107630.0,0.20438704]
[1750090154715,0.0365,107640.0,107630.0,1.08124776]
[1750090155166,0.0365,107640.0,107630.0,0.4958288]
[1750090155846,0.0375,107640.0,107630.0,0.4958288]
[1750090156327,0.0395,107640.0,107630.0,0.4958288]
[1750090158785,0.0395,107640.0,107630.0,1.08124776]
[1750090159004,0.0395,107640.0,107630.0,0.4958288]
[1750090160960,0.0395,107640.0,107630.0,1.08124776]
[1750090161206,0.003,107640.0,107630.0,1.28124776]
[1750090161428,0.003,107640.0,107630.0,1.82124776]
[1750090162324,0.001,107640.0,107630.0,1.88578861]
[1750090163426,0.0378,107640.0,107630.0,1.88578861]
[1750090163853,0.0368,107640.0,107630.0,1.88578861]
[1750090164067,0.0368,107640.0,107630.0,1.69058861]
[1750090164283,0.0368,107640.0,107630.0,1.88558861]
[1750090164715,0.0368,107640.0,107630.0,0.8406288]
[1750090164903,0.62715896,107640.0,107630.0,0.5006288]
[1750090165152,0.62715896,107640.0,107630.0,0.4955888]
[1750090165342,0.04174,107640.0,107630.0,0.4955888]
[1750090165589,0.04174,107640.0,107630.0,0.3006288]
[1750090165813,0.04174,107640.0,107630.0,0.4955888]
[1750090166681,0.04174,107640.0,107630.0,0.3006288]
[1750090166899,0.62715896,107640.0,107630.0,0.3006288]
[1750090167115,0.62715896,107640.0,107630.0,0.4955888]
[1750090167766,0.05102953,107640.0,107630.0,0.4955888]
[1750090167966,0.64573819,107640.0,107630.0,0.24518704]
[1750090168153,0.64673819,107640.0,107630.0,0.39934704]
[1750090168601,0.64673819,107640.0,107630.0,0.20438704]
[1750090168855,0.64873819,107640.0,107630.0,0.39934704]
[1750090169235,0.06331923,107640.0,107630.0,0.39934704]
[1750090169575,0.65802807,107640.0,107630.0,0.39934704]
[1750090169965,0.64873819,107640.0,107630.0,0.39934704]
[1750090170182,0.65802807,107640.0,107630.0,0.39934704]
[1750090170522,0.64873819,107640.0,107630.0,0.39934704]
[1750090170732,0.05402953,107640.0,107630.0,0.39934704]
[1750090170942,0.63944849,107640.0,107630.0,0.39934704]
[1750090171177,0.64873819,107640.0,107630.0,0.39934704]
[1750090171385,0.63944849,107640.0,107630.0,0.39934704]
[1750090171597,0.05402953,107640.0,107630.0,0.39934704]
[1750090172030,0.04474,107640.0,107630.0,0.39934704]
[1750090173116,0.05402953,107640.0,107630.0,0.39934704]
[1750090173596,0.63015896,107640.0,107630.0,0.39934704]
[1750090174522,0.04474,107640.0,107630.0,0.39934704]
[1750090174714,0.05402944,107640.0,107630.0,0.39934704]
[1750090175263,0.0398,107640.0,107630.0,0.4955888]
[1750090176085,0.04479,107640.0,107630.0,0.4955888]
[1750090178471,0.0398,107640.0,107630.0,0.4955888]
[1750090178906,0.0398,107640.0,107630.0,0.7632688]
[1750090179861,0.0398,107640.0,107630.0,0.5683088]
[1750090180069,0.0388,107640.0,107630.0,0.7632288]
[1750090180528,0.0368,107640.0,107630.0,0.7632288]
[1750090180729,0.62720896,107640.0,107630.0,0.7632288]
[1750090181150,0.04179,107640.0,107630.0,0.7632288]
[1750090181351,0.62720896,107640.0,107630.0,0.7632288]
[1750090181769,0.04179,107640.0,107630.0,0.7632288]
[1750090187832,0.62720896,107640.0,107630.0,0.7632288]
[1750090188037,0.04179,107640.0,107630.0,0.7632288]
[1750090189950,0.6364984,107640.0,107630.0,0.7630288]
[1750090190180,0.62720896,107640.0,107630.0,0.7630288]
[1750090190871,0.0368,107640.0,107630.0,0.7630288]
[1750090197122,0.62221896,107640.0,107630.0,0.7629888]
[1750090199395,0.0368,107640.0,107630.0,0.7629888]
[1750090201047,0.0192,107640.0,107630.0,0.7629888]
[1750090201268,0.03694206,107650.0,107640.0,0.23367417]
[1750090201493,0.64093835,107650.0,107640.0,0.23367417]
[1750090201912,0.6316496,107650.0,107640.0,0.23367417]
[1750090202117,0.65022736,107650.0,107640.0,0.23367417]
[1750090202329,0.66438638,107650.0,107640.0,0.38767417]
[1750090202743,0.65809728,107650.0,107640.0,0.38767417]
[1750090203408,0.66738638,107650.0,107640.0,0.38767417]
[1750090203653,0.65809728,107650.0,107640.0,0.38767417]
[1750090203880,0.64880835,107650.0,107640.0,0.38767417]
[1750090204706,0.65809728,107650.0,107640.0,0.42835417]
[1750090205128,0.65809736,107650.0,107640.0,0.42835417]
[1750090206215,0.6395196,107650.0,107640.0,0.42835417]
[1750090206432,0.65322728,107650.0,107640.0,0.42835417]
[1750090206655,0.6346496,107650.0,107640.0,0.42835417]
[1750090207115,0.64393835,107650.0,107640.0,0.42831417]
[1750090207314,0.65322728,107650.0,107640.0,0.42831417]
[1750090207557,0.66251638,107650.0,107640.0,0.42831417]
[1750090207778,0.66738638,107650.0,107640.0,0.42831417]
[1750090208226,0.66738629,107650.0,107640.0,0.42831417]
[1750090208444,0.67667548,107650.0,107640.0,0.42831417]
[1750090209450,0.66738629,107650.0,107640.0,0.42831417]
[1750090210064,0.66738629,107650.0,107640.0,0.23367417]
[1750090210270,0.66738629,107650.0,107640.0,0.42831417]
[1750090210499,0.67667548,107650.0,107640.0,0.42831417]
[1750090210847,0.66738629,107650.0,107640.0,0.42831417]
[1750090211053,0.67667539,107650.0,107640.0,0.42831417]
[1750090211483,0.676676,107650.0,107640.0,0.42831417]
[1750090211693,0.67667652,107650.0,107640.0,0.42831417]
[1750090212487,0.66738725,107650.0,107640.0,0.42831417]
[1750090212827,0.85317452,107650.0,107640.0,0.42831417]
[1750090213068,0.05568002,107640.0,107630.0,0.55901841]
[1750090213310,0.65525859,107640.0,107630.0,0.67599822]
[1750090213531,0.65525798,107640.0,107630.0,0.67599822]
[1750090213747,0.65525798,107640.0,107630.0,0.52203822]
[1750090213966,0.65525798,107640.0,107630.0,0.67599822]
[1750090214428,0.65525798,107640.0,107630.0,0.48135822]
[1750090214676,0.65525798,107640.0,107630.0,0.67599822]
[1750090215673,0.66454803,107640.0,107630.0,0.67599822]
[1750090215898,0.65525798,107640.0,107630.0,0.48135822]
[1750090216118,0.65525798,107640.0,107630.0,0.67595822]
[1750090216557,0.66454803,107640.0,107630.0,0.67595822]
[1750090216767,0.65525798,107640.0,107630.0,0.67595822]
[1750090216975,0.66454803,107640.0,107630.0,0.67595822]
[1750090217193,0.65525798,107640.0,107630.0,0.67595822]
[1750090217834,0.65525798,107640.0,107630.0,0.48135822]
[1750090218041,0.66454794,107640.0,107630.0,0.67595822]
[1750090218256,0.65525798,107640.0,107630.0,0.67595822]
[1750090218912,0.6459681,107640.0,107630.0,0.67595822]
[1750090219588,0.65525798,107640.0,107630.0,0.67587822]
[1750090220187,0.6459681,107640.0,107630.0,0.67587822]
[1750090220406,0.6410981,107640.0,107630.0,0.48135822]
[1750090220613,1.42161243,107640.0,107630.0,0.657297]
[1750090220799,1.42648243,107640.0,107630.0,0.66658783]
[1750090221258,1.42648243,107640.0,107630.0,0.67587848]
[1750090221492,1.43577265,107640.0,107630.0,0.67587848]
[1750090221699,0.85135369,107640.0,107630.0,0.67587848]
[1750090222113,0.85135369,107640.0,107630.0,0.48135848]
[1750090222305,0.85335369,107640.0,107630.0,0.68516905]
[1750090222756,0.85335369,107640.0,107630.0,0.67587848]
[1750090224455,1.43877265,107640.0,107630.0,0.67587848]
[1750090226608,1.43877265,107640.0,107630.0,0.68516905]
[1750090227688,1.43390265,107640.0,107630.0,0.66658783]
[1750090227896,1.42948286,107640.0,107630.0,0.67587848]
[1750090228350,1.42019281,107640.0,107630.0,0.66658783]
[1750090228576,1.40161245,107640.0,107630.0,0.657297]
[1750090228805,1.40161245,107640.0,107630.0,0.66658783]
[1750090229271,1.40161245,107640.0,107630.0,0.67587857]
[1750090230347,1.40161245,107640.0,107630.0,0.66658783]
[1750090233709,1.2436779,107640.0,107630.0,0.68516914]
[1750090233964,1.2436779,107640.0,107630.0,0.69445962]
[1750090234395,1.42948243,107640.0,107630.0,0.69445962]
[1750090234941,1.43877265,107640.0,107630.0,0.69445962]
[1750090235575,1.43877265,107640.0,107630.0,0.68516914]
[1750090235777,1.42948286,107640.0,107630.0,0.67587857]
[1750090235987,1.42948286,107640.0,107630.0,0.68516922]
[1750090236212,1.42948286,107640.0,107630.0,0.69445979]
[1750090237472,1.24367833,107640.0,107630.0,0.69445979]
[1750090237684,1.23438776,107640.0,107630.0,0.69445927]
[1750090237902,0.65338799,107640.0,107630.0,0.69445927]
[1750090238304,0.66267804,107640.0,107630.0,0.69445927]
[1750090238541,0.66267795,107640.0,107630.0,0.69445927]
[1750090238992,0.671968,107640.0,107630.0,0.69445927]
[1750090239838,0.66267795,107640.0,107630.0,0.69445927]
[1750090240070,0.65338799,107640.0,107630.0,0.69445927]
[1750090240706,0.66267804,107640.0,107630.0,0.69445927]
[1750090241868,0.65338799,107640.0,107630.0,0.69445927]
[1750090242085,0.66267804,107640.0,107630.0,0.69445927]
[1750090242267,0.66267795,107640.0,107630.0,0.69445927]
[1750090242475,0.65338799,107640.0,107630.0,0.69445927]
[1750090243119,0.66267804,107640.0,107630.0,0.69445927]
[1750090243566,0.65338799,107640.0,107630.0,0.69445927]
[1750090244205,0.66267795,107640.0,107630.0,0.69445927]
[1750090244403,0.6533879,107640.0,107630.0,0.69445927]
[1750090244823,0.64409811,107640.0,107630.0,0.69445927]
[1750090245308,0.003,107640.0,107630.0,0.71275927]
[1750090245501,0.003,107640.0,107630.0,0.80900103]
[1750090247061,0.003,107640.0,107630.0,0.79070103]
[1750090247502,0.003,107640.0,107630.0,0.80920103]
[1750090248157,0.003,107640.0,107630.0,0.82670103]
[1750090249758,0.003,107640.0,107630.0,0.80920103]
[1750090251845,0.003,107640.0,107630.0,0.79070103]
[1750090252264,0.003,107640.0,107630.0,0.80870103]
[1750090255650,0.003,107640.0,107630.0,0.79070103]
[1750090256951,0.58587578,107640.0,107630.0,0.79070103]
[1750090257720,0.003,107640.0,107630.0,0.79070103]
[1750090257956,0.003,107640.0,107630.0,1.42857681]
[1750090258186,0.003,107640.0,107630.0,1.96857681]
[1750090258428,0.003,107640.0,107630.0,2.16857681]
[1750090258902,0.003,107640.0,107630.0,1.58570103]
[1750090259137,0.003,107640.0,107630.0,2.16840759]
[1750090259138,0.001,107640.0,107630.0,2.16840759]
[1750090259791,0.00014206,107650.0,107640.0,0.21367417]
[1750090259974,0.00014206,107650.0,107640.0,0.48213593]
[1750090260837,0.00014206,107650.0,107640.0,0.49953593]
[1750090261252,0.00214206,107650.0,107640.0,0.49953593]
[1750090261981,0.00214206,107650.0,107640.0,0.48213593]
[1750090262162,0.00314206,107650.0,107640.0,0.48213593]
[1750090264016,0.04953064,107650.0,107640.0,0.30991593]
[1750090264286,0.64619587,107650.0,107640.0,0.40787417]
[1750090264489,0.65548471,107650.0,107640.0,0.40787417]
[1750090264691,0.66477372,107650.0,107640.0,0.40787417]
[1750090265087,0.67406283,107650.0,107640.0,0.40787417]
[1750090265224,0.67406274,107650.0,107640.0,0.40787417]
[1750090265435,0.66477364,107650.0,107640.0,0.40787417]
[1750090265638,0.67406274,107650.0,107640.0,0.40787417]
[1750090265850,0.66477364,107650.0,107640.0,0.40787417]
[1750090266078,0.67406274,107650.0,107640.0,0.40787417]
[1750090266282,0.09135618,107650.0,107640.0,0.40787417]
[1750090266577,0.66477364,107650.0,107640.0,0.40787417]
[1750090266784,0.67406274,107650.0,107640.0,0.40787417]
[1750090267041,0.67406265,107650.0,107640.0,0.40787417]
[1750090267177,0.67406326,107650.0,107640.0,0.40787417]
[1750090267384,0.66477407,107650.0,107640.0,0.40787417]
[1750090267584,0.65548506,107650.0,107640.0,0.40787417]
[1750090267941,0.64619613,107650.0,107640.0,0.40787417]
[1750090269593,0.64152613,107650.0,107640.0,0.40787417]
[1750090270090,0.65081514,107650.0,107640.0,0.40787417]
[1750090270251,0.64152613,107650.0,107640.0,0.40787417]
[1750090270664,0.65081514,107650.0,107640.0,0.40787417]
[1750090271110,0.64152613,107650.0,107640.0,0.40787417]
[1750090271517,0.65081514,107650.0,107640.0,0.21367417]
[1750090271749,0.65081514,107650.0,107640.0,0.40783417]
[1750090272106,0.65081506,107650.0,107640.0,0.40783417]
[1750090272464,0.64152613,107650.0,107640.0,0.40783417]
[1750090272760,0.63223729,107650.0,107640.0,0.40783417]
[1750090272966,0.04953073,107650.0,107640.0,0.40783417]
[1750090273269,0.00314206,107650.0,107640.0,0.50407593]
[1750090277782,0.00314206,107650.0,107640.0,0.54067593]
[1750090279289,0.00314206,107650.0,107640.0,0.50407593]
[1750090283502,0.00314206,107650.0,107640.0,0.54017593]
[1750090284375,0.00314206,107650.0,107640.0,0.52247593]
[1750090286433,0.00314206,107650.0,107640.0,0.50407593]
[1750090286562,0.00314206,107650.0,107640.0,0.52237593]
[1750090286763,0.00314206,107650.0,107640.0,0.50407593]
[1750090287025,0.04104206,107650.0,107640.0,0.50387593]
[1750090289806,0.04104206,107650.0,107640.0,0.50383593]